fUSD/lending_fUSD_20240125
["ID","MTS","AMOUNT","RATE_DAILY","PERIOD"]
[312708601,1706176238272,-152.88280836,0.000229,2]
[312708602,1706176238282,-1917.3587,0.000229,2]
[312708603,1706176238290,-570.26642099,0.000229,2]
[312708604,1706176238299,-2365.20886173,0.000229,2]
[312708605,1706176238308,-573.39271304,0.000229,2]
[312708606,1706176238319,-491.00495886,0.000229,2]
[312708607,1706176238330,-150.0,0.00022903,2]
[312708608,1706176238340,-150.0,0.00022904,2]
[312708609,1706176238350,-150.0,0.00022904,2]
[312708610,1706176238360,-150.0,0.00022911,2]
[312708611,1706176238369,-150.0,0.00022912,2]
[312708612,1706176238378,-150.0,0.00022923,2]
[312708613,1706176238387,-150.0,0.00022923,2]
[312708614,1706176238398,-1500.0,0.00022937,2]
[312708615,1706176238408,-150.0,0.00022939,2]
[312708616,1706176238417,-300.0,0.0002294,2]
[312708617,1706176238428,-150.0,0.00022941,2]
[312708618,1706176238438,-150.0,0.00022942,2]
[312708619,1706176238450,-150.0,0.00022944,2]
[312708620,1706176238459,-150.0,0.00022947,2]
[312708621,1706176238468,-150.0,0.00022948,2]
[312708622,1706176238478,-157.62,0.0002295,2]
[312708623,1706176238488,-150.0,0.00022953,2]
[312708624,1706176238497,-150.0,0.00022959,2]
[312708626,1706176238506,-150.0,0.00022963,2]
[312708628,1706176238515,-150.0,0.00022965,2]
[312708630,1706176238524,-150.0,0.00022966,2]
[312708632,1706176238534,-150.0,0.00022975,2]
[312708633,1706176238543,-169.50046377,0.00022988,2]
[312708635,1706176238552,-403.84,0.00022992,2]
[312708637,1706176238561,-155.80321594,0.00022992,2]
[312708639,1706176238570,-1170.06752569,0.00022993,3]
[312708641,1706176238579,-754.0,0.00022993,2]
[312708643,1706176238588,-1854.02874709,0.00022993,2]
[312708645,1706176238597,-63980.56728388,0.00022994,2]
[312708650,1706176238629,-533.47638671,0.00022994,2]
[312708855,1706176240702,-682.22899803,0.00022994,2]
[312708857,1706176240713,-579.10942982,0.00022994,2]
[312708859,1706176240724,-403.84,0.00022994,2]
[312708862,1706176240743,-1795.0,0.00022994,2]
[312708867,1706176240780,-455.59834235,0.00022994,2]
[312708871,1706176240851,-1357.1896216,0.00022994,2]
[312708872,1706176240863,-4544.00000002,0.00022994,2]
[312708873,1706176241530,-2883.20444588,0.00022994,2]
[312708874,1706176241542,-983.82216087,0.00022994,2]
[312708875,1706176241555,-1346.31370766,0.00022994,2]
[312708876,1706176241570,-509.73860691,0.00022994,2]
[312708877,1706176241582,-649.02,0.00022994,2]
[312708879,1706176241600,-2553.98780377,0.00022994,2]
[312708911,1706176243282,-724.54,0.00022272,2]
[312708912,1706176243291,-11143.27885988,0.00022994,2]
[312708913,1706176243303,-278.79969255,0.00022994,2]
[312708914,1706176243337,-331.24618229,0.00022994,2]
[312708915,1706176243348,-446.05063709,0.00022994,2]
[312708916,1706176243359,-314.65275,0.00022994,2]
[312708917,1706176243476,-265.82140659,0.00022994,2]
[312708971,1706176246277,-650.38784166,0.00022993,2]
[312708974,1706176246286,-520.94787891,0.00022994,2]
[312708982,1706176246332,-3784.23308345,0.00022994,2]
[312708990,1706176246401,-800.0,0.00022994,2]
[312708992,1706176246416,-2645.57653317,0.00022994,2]
[312709018,1706176246488,-465.67000015,0.00022994,2]
[312709021,1706176246672,-561.424,0.00022994,2]
[312709024,1706176246691,-558.4195344,0.00022994,2]
[312709026,1706176246702,-1249.26186489,0.00022994,2]
[312709030,1706176246726,-399.3830105,0.00022994,2]
[312709032,1706176246737,-1057.93176369,0.00022994,2]
[312709037,1706176246752,-2049.30000001,0.00022994,2]
[312709127,1706176717365,616.14,0.00020026,2]
[312709128,1706176761246,1279.39039853,0.00020026,5]
[312709129,1706176766070,455.89464545,0.00020379,2]
[312709130,1706176770002,1951.18829727,0.00020026,2]
[312709131,1706176771918,731.88024959,0.00021,2]
[312709132,1706176775267,1281.24963761,0.00020026,5]
[312709133,1706176789903,587.43520251,0.00021,2]
[312709134,1706176803459,270.64795926,0.00018318,2]
[312709135,1706176807135,155.0,0.00021,2]
[312709136,1706176811018,1024.54554514,0.00021,2]
[312709137,1706176812127,155.0,0.000189,2]
[312709138,1706176813277,1099.3215382,0.00021,2]
[312709139,1706176822453,167.32,0.00017535,2]
[312709140,1706176826319,610.8682776,0.00021,2]
[312709141,1706176829125,159.33142403,0.00021,2]
[312709142,1706176831313,940.00885251,0.00021,2]
[312709143,1706176839301,376.09703349,0.00021,2]
[312709144,1706176848363,208.9630072,0.00021,2]
[312709145,1706176848652,1228.7364261,0.00020608,2]
[312709146,1706176870994,6092.94367433,0.00021,2]
[312709147,1706176888992,1559.087013,0.00021,2]
[312709148,1706176925122,207.0,0.00021709,2]
[312709149,1706176957526,2114.627127,0.00021643,2]
[312709150,1706176974655,1228.7364261,0.00020608,2]
[312709151,1706176996836,402.7887937,0.00021058,2]
[312709152,1706177010856,402.7887937,0.0001999,2]
[312709153,1706177014005,156.22271469,0.00018547,2]
[312709154,1706177014656,1228.7364261,0.00020608,2]
[312709155,1706177030843,339.60384714,0.0001999,2]
[312709156,1706177034668,227.81598009,0.00020608,2]
[312709157,1706177084441,2325.32167616,0.00020608,2]
[312709158,1706177090849,402.64675844,0.0001999,2]
[312709159,1706177102398,2325.32167616,0.00020608,2]
[312709160,1706177105317,1098.80867034,0.00020608,2]
[312709161,1706177144675,1228.7364261,0.00020608,2]
[312709162,1706177145313,1243.26452789,0.00020608,2]
[312709163,1706177155821,608.75,0.00019977,2]
[312709164,1706177176860,402.64675844,0.00019378,2]
[312709165,1706177184424,1822.99814805,0.0002,2]
[312709166,1706177202746,1228.7364261,0.00020608,2]
[312709167,1706177212954,402.7887937,0.00019378,2]
[312709168,1706177218681,646.50533405,0.00020608,2]
[312709169,1706177232855,402.50472318,0.00018797,2]
[312709170,1706177255322,402.7887937,0.00018797,2]
[312709171,1706177274860,402.7887937,0.00018797,2]
[312709173,1706177300647,167.32,0.00017477,2]
[312709174,1706177345055,3189.69987743,0.00018797,2]
[312709175,1706177345075,2901.97199692,0.00018797,2]
[312709176,1706177365451,160.92343048,0.00021653,2]
[312709197,1706177432343,-1959.3,0.00021752,2]
[312709200,1706177432361,-380.11317578,0.00021752,2]
[312709201,1706177432381,-608.97071501,0.00021752,2]
[312709202,1706177432394,-2066.28100151,0.00021753,2]
[312709203,1706177432407,-329.79,0.00021868,2]
[312709204,1706177432421,-579.64,0.00021872,2]
[312709205,1706177432436,-250.0,0.00021882,2]
[312709206,1706177432449,-160.92343048,0.00021902,2]
[312709207,1706177432462,-250.0,0.00022,2]
[312709208,1706177432476,-150.0,0.00022,2]
[312709209,1706177432489,-176.54,0.00022,2]
[312709210,1706177432503,-257.33,0.00022,2]
[312709211,1706177432516,-150.0,0.00022,2]
[312709212,1706177432529,-157.62,0.0002201,2]
[312709213,1706177432543,-420.36,0.00022125,2]
[312709214,1706177432556,-474.96743432,0.00022137,2]
[312709215,1706177432573,-160.92343048,0.00022152,2]
[312709216,1706177432586,-1.52295823,0.00022241,2]
[312709217,1706177432609,-257.11704311,0.00022241,2]
[312709218,1706177432626,-350.10999866,0.00022241,2]
[312709219,1706177432639,-250.0,0.00022274,2]
[312709220,1706177432653,-61.57277208,0.00022401,2]
[312709221,1706177432671,-99.3506584,0.00022401,2]
[312709222,1706177432685,-250.0,0.00022548,2]
[312709223,1706177432700,-176.54,0.00022548,2]
[312709224,1706177432714,-160.92343048,0.00022651,2]
[312709225,1706177432724,-631.0,0.000227,2]
[312709226,1706177432734,-419.68653049,0.00022815,2]
[312709227,1706177432762,-80.31346951,0.00022815,2]
[312709228,1706177432772,-327.37393942,0.00022816,2]
[312709229,1706177432794,-172.62606058,0.00022816,2]
[312709230,1706177432804,-500.0,0.00022816,2]
[312709231,1706177432813,-401.99596533,0.00022816,2]
[312709232,1706177432827,-98.00403467,0.00022816,2]
[312709233,1706177433140,-200.0,0.00022816,2]
[312709234,1706177433180,-800.0,0.00022816,2]
[312709235,1706177433192,-255.56086909,0.00022822,2]
[312709236,1706177433201,-150.0,0.00022892,2]
[312709237,1706177433212,-247.03342612,0.00022898,2]
[312709238,1706177433221,-500.83592251,0.00022899,2]
[312709239,1706177433230,-18213.28531889,0.000229,2]
[312709240,1706177433242,-500.61671431,0.000229,2]
[312709241,1706177433255,-612.90951479,0.000229,2]
[312709242,1706177433267,-486.50108895,0.000229,2]
[312709243,1706177433298,-2224.53765689,0.000229,2]
[312709244,1706177433310,-1881.39482376,0.000229,2]
[312709245,1706177433321,-2378.59324902,0.000229,2]
[312709246,1706177433332,-876.46031176,0.000229,2]
[312709247,1706177433345,-965.17012946,0.000229,2]
[312709248,1706177433369,-2215.7,0.000229,2]
[312709249,1706177433430,-940.9021208,0.000229,2]
[312709256,1706177438265,-6266.93454106,0.000229,2]
[312709259,1706177438344,-545.36895339,0.000229,2]
[312709260,1706177438356,-573.29099192,0.000229,2]
[312709261,1706177438560,-1129.50934027,0.000229,2]
[312709262,1706177438572,-322.85,0.000229,2]
[312709263,1706177438595,-2546.38577049,0.000229,2]
[312709264,1706177438606,-12874.58947424,0.000229,2]
[312709265,1706177438616,-498.98311834,0.000229,2]
[312709266,1706177438625,-152.88280836,0.000229,2]
[312709267,1706177438634,-5000.0,0.000229,2]
[312709268,1706177438643,-8.87044404,0.000229,2]
[312709270,1706177438666,-152.05298644,0.000229,2]
[312709272,1706177438674,-1691.53518873,0.000229,2]
[312709274,1706177438685,-381.68241518,0.000229,2]
[312709279,1706177438720,-94.89051926,0.000229,2]
[312709281,1706177438730,-150.0,0.00022912,2]
[312709283,1706177438739,-263.85947574,0.00022992,3]
[312709285,1706177438751,-446.04655466,0.00022992,3]
[312709286,1706177438771,-556.95518725,0.00022992,3]
[312709287,1706177438780,-66.56631195,0.00022992,2]
[312709395,1706177440880,-935.66335269,0.00022992,2]
[312709398,1706177441157,-12257.15657886,0.00022992,2]
[312709399,1706177441166,-504.41543892,0.00022992,2]
[312709400,1706177441175,-379.98844404,0.00022993,2]
[312709401,1706177441184,-200.0,0.00022994,2]
[312709402,1706177441194,-2000.0,0.00022994,2]
[312709403,1706177441204,-253.96304871,0.00022998,2]
[312709404,1706177441213,-867.04845448,0.00022998,2]
[312709405,1706177441222,-663.51910671,0.00022998,2]
[312709406,1706177441232,-159.29962906,0.00022998,2]
[312709407,1706177441241,-335.00350038,0.00022999,2]
[312709408,1706177441251,-221.73901859,0.00022999,2]
[312709409,1706177441261,-279.6116952,0.00022999,2]
[312709410,1706177441271,-327.94678559,0.00022999,2]
[312709411,1706177441280,-217.35229296,0.00022999,2]
[312709412,1706177441289,-3301.0962401,0.00022999,2]
[312709413,1706177441298,-1050.98783366,0.00022999,2]
[312709414,1706177441307,-164.8499711,0.00022999,2]
[312709415,1706177441316,-497.03416916,0.00022999,2]
[312709416,1706177441325,-262.27155254,0.00022999,2]
[312709417,1706177441334,-150.0,0.00022999,2]
[312709418,1706177441343,-681.0,0.00023,2]
[312709419,1706177441353,-15367.75267239,0.00023,2]
[312709420,1706177441386,-8883.99999996,0.00023,2]
[312709421,1706177441398,-1418.29796887,0.00023,2]
[312709446,1706177443460,-1095.75812552,0.00023,2]
[312709454,1706177443524,-426.96508485,0.00023,2]
[312709456,1706177443536,-567.728,0.00023,2]
[312709460,1706177443590,-3996.26774721,0.00023,2]
[312709461,1706177443678,-327.71451975,0.00023,2]
[312709462,1706177443690,-403.96999975,0.00023,2]
[312709463,1706177443815,-382.2618087,0.000229,2]
[312709464,1706177443826,-2229.93929554,0.00023,2]
[312709465,1706177443838,-2627.76022133,0.00023,2]
[312709466,1706177443850,-903.87469806,0.00023,2]
[312709493,1706177446416,-1954.45,0.00023,2]
[312709494,1706177446475,-356.0706302,0.00023,2]
[312709495,1706177446534,-445.46251024,0.00023,2]
[312709497,1706177658624,161.88839056,0.00020608,2]
[312709498,1706177676677,161.88839056,0.00020608,2]
[312709499,1706177693140,161.88839056,0.00020608,2]
[312709500,1706177713644,161.88839056,0.00020608,2]
[312709501,1706177726457,191.52300728,0.00020735,2]
[312709502,1706177726479,444.99699272,0.00020735,2]
[312709503,1706177733634,161.88839056,0.00020608,2]
[312709504,1706177752011,284.6471464,0.00020608,2]
[312709505,1706177752130,108.46747032,0.00020608,2]
[312709506,1706177752152,175.03149178,0.00020608,2]
[312709507,1706177766013,169.42992406,0.00020608,2]
[312709508,1706177841092,169.68,0.00020649,2]
[312709509,1706178004673,207.0,0.00021444,2]
[312709510,1706178103553,610.8682776,0.00021444,2]
[312709511,1706178117593,531.65095513,0.00021444,2]
[312709512,1706178327192,1381.6624045,0.00021444,2]
[312709513,1706178341534,604.69,0.00019956,2]
[312709516,1706178473560,155.0,0.00019956,2]
[312709517,1706178479741,358.71849914,0.00018318,2]
[312709518,1706178483817,885.78577679,0.00019956,2]
[312709519,1706178562388,155.0,0.00019956,2]
[312709520,1706178562973,155.0,0.00019956,2]
[312709521,1706178563572,155.31271408,0.00019956,2]
[312709522,1706178578965,265.82049859,0.00019956,2]
[312709523,1706178582385,361.19933031,0.00018318,2]
[312709533,1706178631492,-202.499379,0.00021795,2]
[312709534,1706178631502,-536.28,0.00021877,2]
[312709535,1706178631510,-193.20182774,0.00021877,2]
[312709536,1706178631550,-56.79817226,0.00021877,2]
[312709537,1706178631559,-457.52,0.00021905,2]
[312709538,1706178631568,-98.05534453,0.00022043,2]
[312709539,1706178631588,-59.56465547,0.00022043,2]
[312709540,1706178631596,-604.69,0.0002222,2]
[312709541,1706178631605,-274.82,0.00022422,2]
[312709542,1706178631615,-463.72,0.00022428,2]
[312709543,1706178631624,-72.85993204,0.00022616,2]
[312709544,1706178631652,-83.00481002,0.00022616,2]
[312709545,1706178631661,-155.86474201,0.00022642,2]
[312709546,1706178631670,-43.4630733,0.00022668,2]
[312709549,1706178631804,-112.40166871,0.00022668,2]
[312709551,1706178631813,-155.86474201,0.00022693,2]
[312709552,1706178631823,-155.86474201,0.00022719,2]
[312709553,1706178631832,-155.86474201,0.00022745,2]
[312709554,1706178631842,-155.86474201,0.00022771,2]
[312709555,1706178631851,-155.86474201,0.00022797,2]
[312709557,1706178631861,-200.0,0.00022816,2]
[312709560,1706178631870,-800.0,0.00022816,2]
[312709563,1706178631879,-155.86474201,0.00022823,2]
[312709566,1706178631889,-155.86474201,0.00022848,2]
[312709568,1706178631898,-155.86474201,0.00022874,2]
[312709570,1706178631906,-300.0,0.00022897,2]
[312709572,1706178631916,-150.0,0.00022897,2]
[312709574,1706178631925,-747.89331272,0.00022898,2]
[312709577,1706178631934,-2537.8175,0.00022898,2]
[312709580,1706178631943,-498.7724,0.000229,2]
[312709583,1706178631952,-1257.2742,0.000229,2]
[312709586,1706178631962,-15308.35844976,0.000229,2]
[312709604,1706178637565,-299.434517,0.000229,2]
[312709605,1706178637577,-261.99836,0.000229,2]
[312709606,1706178637605,-36951.74677324,0.000229,2]
[312709607,1706178637615,-155.86474201,0.000229,2]
[312709608,1706178637625,-5000.0,0.000229,2]
[312709609,1706178637634,-152.88280836,0.000229,2]
[312709610,1706178637644,-761.19227052,0.000229,2]
[312709611,1706178637653,-254.8412058,0.000229,2]
[312709612,1706178637662,-327.33663924,0.000229,2]
[312709613,1706178637671,-1072.12421645,0.00022997,3]
[312709614,1706178637679,-2132.51,0.00022997,2]
[312709615,1706178637689,-2150.9729499,0.00022997,2]
[312709616,1706178637698,-25125.65109207,0.00022998,2]
[312709617,1706178637708,-166.73652709,0.00022998,2]
[312709618,1706178637717,-199.70774657,0.00022998,2]
[312709619,1706178637726,-295.78388584,0.00022999,2]
[312709620,1706178637738,-216.3695052,0.00022999,2]
[312709621,1706178637748,-156.64507803,0.00022999,2]
[312709622,1706178637758,-247.78428207,0.00022999,5]
[312709623,1706178637768,-3301.0962401,0.00022999,2]
[312709624,1706178637778,-566.0,0.00023,2]
[312709625,1706178637787,-1361690.08549751,0.00023,2]
[312709626,1706178637797,-173336.24777391,0.00023,2]
[312709627,1706178637806,-544.93064915,0.00023,7]
[312709628,1706178637816,-1313555.30886568,0.00023,2]
[312709629,1706178637828,-68086.8713615,0.00023,2]
[312709630,1706178637839,-3643.07661042,0.00023,2]
[312709631,1706178637868,-585.23996707,0.00023,2]
[312709632,1706178637879,-2040.74454243,0.00023,2]
[312709633,1706178637891,-546.17176038,0.00023,2]
[312709634,1706178637917,-14539.16432152,0.00023,2]
[312709635,1706178637929,-12047.27731847,0.00023,2]
[312709636,1706178637962,-19555.87753619,0.00023,2]
[312709637,1706178637974,-1030.21621389,0.00023,2]
[312709642,1706178638109,-313.27,0.00023,2]
[312709645,1706178640158,-355.32,0.00023,2]
[312709646,1706178640170,-4272.3,0.00023,2]
[312709647,1706178640236,-640.07358814,0.00023,2]
[312709648,1706178640250,-498.1733841,0.00023,2]
[312709649,1706178640331,-95.91830479,0.00023,2]
[312709650,1706178640342,-269.78455022,0.00023,2]
[312709651,1706178640785,-442.88535438,0.00023,2]
[312709652,1706178640797,-501.7001713,0.00023,2]
[312709653,1706178640808,-1807.65857259,0.00023,2]
[312709654,1706178640841,-969.00848929,0.00023,2]
[312709655,1706178640906,-7669.78249999,0.00023,2]
[312709656,1706178640917,-309.46487232,0.00023,2]
[312709677,1706178642535,-42984.75229858,0.00023,2]
[312709679,1706178642546,-955.59576504,0.00023,2]
[312709681,1706178642557,-861.16236143,0.00023,2]
[312709684,1706178642569,-687.42428315,0.00023,2]
[312709685,1706178642581,-2239.75908726,0.00023,2]
[312709686,1706178642603,-1323.33603651,0.00023,2]
[312709687,1706178642614,-457.32256415,0.00023,2]
[312709688,1706178642659,-1432.99391161,0.00022999,2]
[312709689,1706178642670,-516.68256542,0.00022999,2]
[312709690,1706178642681,-1351.41976307,0.00022999,2]
[312709691,1706178642690,-1631.72505622,0.00023,2]
[312709692,1706178642984,-1648.37425309,0.00023,2]
[312709693,1706178642995,-12043.91753468,0.00023,2]
[312709702,1706178645923,-150.00000001,0.00022614,2]
[312709703,1706178645933,-185.98819799,0.000229,6]
[312709704,1706178645943,-26643.89809555,0.00023,2]
[312709705,1706178646013,-956.09363516,0.00023,2]
[312709706,1706178646025,-1330.01999995,0.00023,2]
[312709707,1706178646236,-20268.58482151,0.00023,2]
[312709708,1706178646267,-4572.52516995,0.00023,2]
[312709709,1706178646279,-7351.74604712,0.00023,2]
[312709710,1706178646291,-686.0,0.00023,2]
[312709711,1706178646316,-2452.6972002,0.00023,2]
[312709712,1706178646327,-916.65069652,0.00023,2]
[312709713,1706178646339,-390.28,0.00023,2]
[312709717,1706178788740,580.74,0.00020673,2]
[312709718,1706179084298,207.0,0.00021198,2]
[312709719,1706179087915,-600.0,0.00021847,2]
[312709720,1706179242767,551.7,0.00019982,2]
[312709721,1706179355325,150.0,0.00021583,2]
[312709722,1706179386183,429.03,0.00021569,2]
[312709723,1706179414844,302.82,0.00021644,2]
[312709725,1706179434559,155.0,0.00021644,2]
[312709726,1706179435685,306.54663149,0.00021644,2]
[312709727,1706179480667,250.0,0.00021581,2]
[312709728,1706179516044,315.93,0.00021618,2]
[312709729,1706179606236,353.39,0.00021666,2]
[312709730,1706179702397,200.0,0.00021635,2]
[312709731,1706179703268,1292.10498132,0.00022768,3]
[312709732,1706179728014,436.02,0.00021629,2]
[312709733,1706179751806,524.11,0.00019702,2]
[312709734,1706179772508,360.83560128,0.00018316,2]
[312709735,1706179775964,883.62733182,0.00021629,2]
[312709736,1706179805052,200.0,0.00021605,2]
[312709759,1706179831735,-207.0,0.00021785,2]
[312709761,1706179831745,-2312.6579,0.00021799,2]
[312709763,1706179831755,-155.86474201,0.000218,2]
[312709765,1706179831764,-37.67607881,0.00021847,2]
[312709766,1706179831774,-16785.71714725,0.00021871,2]
[312709767,1706179831783,-1500.0,0.00021872,2]
[312709769,1706179831792,-150.0,0.00021898,2]
[312709771,1706179831801,-1538.6801,0.000219,2]
[312709773,1706179831809,-158.25,0.00021915,2]
[312709774,1706179831818,-250.0,0.00021918,2]
[312709775,1706179831827,-524.11,0.00021966,2]
[312709776,1706179831836,-500.0,0.00022,2]
[312709777,1706179831846,-500.0,0.00022,2]
[312709778,1706179831855,-500.0,0.00022,2]
[312709779,1706179831864,-288.33,0.00022,2]
[312709780,1706179831873,-158.25,0.00022019,2]
[312709781,1706179831882,-158.25,0.00022123,2]
[312709782,1706179831891,-570.97,0.00022152,2]
[312709783,1706179831901,-158.25,0.00022227,2]
[312709784,1706179831911,-166.31,0.00022304,2]
[312709785,1706179831920,-68.19686945,0.0002233,2]
[312709786,1706179831952,-90.05313055,0.0002233,2]
[312709787,1706179831961,-158.25,0.00022434,2]
[312709788,1706179831970,-302.82,0.00022445,2]
[312709789,1706179831979,-93.75360035,0.00022538,2]
[312709790,1706179832007,-64.49639965,0.00022538,2]
[312709791,1706179832016,-158.25,0.00022642,2]
[312709792,1706179832025,-158.25,0.00022746,2]
[312709793,1706179832034,-1101.18125251,0.00022768,3]
[312709794,1706179832046,-302.95738335,0.00022768,3]
[312709795,1706179832055,-282.36940041,0.00022768,2]
[312709796,1706179832064,-1229.20601844,0.00022768,2]
[312709798,1706179832074,-1535.39219089,0.00022797,2]
[312709800,1706179832093,-2230.9895942,0.00022797,2]
[312709802,1706179832104,-1436.07631491,0.00022797,2]
[312709803,1706179832114,-200.0,0.00022813,2]
[312709804,1706179832124,-200.0,0.00022816,2]
[312709806,1706179832133,-800.0,0.00022816,2]
[312709808,1706179832143,-158.25,0.00022849,2]
[312709810,1706179832153,-4985.67368509,0.00022897,2]
[312709841,1706179837688,-973.8,0.00022897,2]
[312709842,1706179837805,-2053.40694668,0.00022897,2]
[312709843,1706179837816,-802.27,0.00022897,2]
[312709844,1706179837827,-690.84238113,0.00022897,2]
[312709845,1706179837839,-78690.64155692,0.00022897,2]
[312709846,1706179837849,-1987.43244634,0.000229,2]
[312709847,1706179837858,-2735.18727085,0.000229,2]
[312709848,1706179837867,-535.72770883,0.000229,2]
[312709849,1706179837876,-158.25,0.00022953,2]
[312709850,1706179837885,-256.8018114,0.00022995,2]
[312709851,1706179837894,-1154.4490385,0.00022995,2]
[312709852,1706179837904,-30316.3525006,0.00022996,2]
[312709853,1706179837913,-215.41213944,0.00022996,2]
[312709854,1706179837922,-177.91292476,0.00022996,2]
[312709855,1706179837931,-4638.11355098,0.00022996,2]
[312709856,1706179837940,-155.93257222,0.00022997,2]
[312709857,1706179837949,-244.33054012,0.00022997,2]
[312709858,1706179837959,-346.13075499,0.00022997,2]
[312709859,1706179837968,-2337.1607316,0.00022997,2]
[312709860,1706179837977,-1836.7235073,0.00022997,2]
[312709861,1706179837986,-235.25134461,0.00022997,2]
[312709862,1706179837996,-1866.82286476,0.00022997,2]
[312709863,1706179838005,-309.999999,0.00022997,2]
[312709864,1706179838014,-4381.71420151,0.00022997,2]
[312709865,1706179838024,-5445.7964682,0.00022997,2]
[312709866,1706179838033,-3677.14662018,0.00022997,2]
[312709867,1706179838043,-491.298365,0.00022997,2]
[312709868,1706179838052,-24354.95155812,0.00022997,2]
[312709869,1706179838062,-1298.07209876,0.00022997,2]
[312709870,1706179838074,-250.0,0.00022997,2]
[312709871,1706179838098,-57.52049141,0.00022997,2]
[312709872,1706179838108,-274.76387559,0.00022997,2]
[312709873,1706179838117,-221.54491624,0.00022997,2]
[312709874,1706179838127,-870.44734362,0.00022997,2]
[312709875,1706179838136,-2189.56826712,0.00022997,2]
[312709879,1706179838184,-841.63988035,0.00022997,2]
[312709881,1706179838193,-35417.16529007,0.00022997,2]
[312709884,1706179838203,-1500.0,0.00022997,2]
[312709886,1706179838212,-155.25501233,0.00022998,2]
[312709888,1706179838221,-1085.93981725,0.00022999,2]
[312709895,1706179840162,-387.05507621,0.00022999,2]
[312709896,1706179840328,-424.82213099,0.00022999,2]
[312709897,1706179840341,-500.0,0.00022999,2]
[312709898,1706179840353,-597.60997935,0.00022999,2]
[312709899,1706179840376,-305.6692363,0.00022999,2]
[312709900,1706179840385,-1505.96379904,0.00023,2]
[312709901,1706179840396,-10188.12012903,0.00023,2]
[312709902,1706179840419,-3103.72225,0.00023,2]
[312709903,1706179840430,-7782.20000002,0.00023,2]
[312709904,1706179840462,-3892.49999999,0.00023,2]
[312709905,1706179840473,-8209.71251507,0.00023,2]
[312709906,1706179840485,-1346.76643358,0.00023,2]
[312709907,1706179840870,-367508.79774161,0.00023,2]
[312709908,1706179840885,-531.06,0.00023,2]
[312709909,1706179840927,-2260.5,0.00023,2]
[312709910,1706179840987,-1789.99622207,0.00023,2]
[312709911,1706179840998,-484.83083154,0.00023,2]
[312709948,1706179842821,-2972.4187,0.00021772,2]
[312709951,1706179842831,-7.45971503,0.00022999,2]
[312709954,1706179842843,-1245.28478886,0.00022999,2]
[312709956,1706179842857,-296.71386855,0.00022999,2]
[312709959,1706179842875,-1751.63786766,0.00022999,2]
[312709961,1706179842884,-364.06607591,0.00023,2]
[312709965,1706179842907,-717.584718,0.00023,2]
[312709967,1706179842920,-8851.14718337,0.00023,2]
[312709971,1706179842949,-23482.07583958,0.00023,2]
[312709974,1706179842961,-16704.43177901,0.00023,2]
[312709976,1706179842974,-3510.059181,0.00023,2]
[312709978,1706179842986,-561.1475396,0.00023,2]
[312709980,1706179842997,-4103.3305331,0.00023,2]
[312709983,1706179843008,-1242.2416935,0.00023,2]
[312709985,1706179843020,-37560.59688586,0.00023,2]
[312709987,1706179843030,-57413.44860734,0.00023,2]
[312709989,1706179843039,-500.0,0.00023,2]
[312709991,1706179843048,-1286.82515623,0.00023,2]
[312709993,1706179843057,-586.06051143,0.00023,2]
[312709995,1706179843066,-334.94210288,0.00023,2]
[312709997,1706179843076,-155.0,0.00023,2]
[312709999,1706179843086,-155.0,0.00023,2]
[312710001,1706179843095,-274.47186855,0.00023,2]
[312710003,1706179843104,-1000.0,0.00023,2]
[312710005,1706179843113,-53827.95500582,0.00023009,2]
[312710007,1706179843125,-3208.91479495,0.00023009,2]
[312710012,1706179843179,-2634.9914707,0.00023009,2]
[312710112,1706179846156,-1072.096015,0.00022884,2]
[312710113,1706179846166,-6306.28606733,0.00023009,2]